fUST/lending_fUST_20250809
["ID","MTS","AMOUNT","RATE_DAILY","PERIOD"]
[378098337,1754729433467,-460.0,0.00021917,2]
[378098338,1754729433479,-460.0,0.00021917,2]
[378098339,1754729433489,-460.0,0.00021917,2]
[378098340,1754729433499,-666.55,0.00021917,2]
[378098341,1754729433511,-460.0,0.00021917,2]
[378098342,1754729433521,-489.02,0.00021917,2]
[378098343,1754729433532,-460.0,0.00021917,2]
[378098344,1754729433541,-460.0,0.00021917,2]
[378098345,1754729433552,-2695.17,0.00021917,2]
[378098346,1754729433562,-460.0,0.00021917,2]
[378098347,1754729433572,-460.0,0.00021917,2]
[378098348,1754729433582,-460.0,0.00021917,2]
[378098349,1754729433592,-272.9788499,0.00021917,2]
[378098350,1754729433602,-466.84,0.00021917,2]
[378098351,1754729433611,-460.0,0.00021917,2]
[378098352,1754729433621,-460.0,0.00021917,2]
[378098353,1754729433630,-460.0,0.00021917,2]
[378098354,1754729433639,-460.0,0.00021917,2]
[378098355,1754729433649,-460.0,0.00021917,2]
[378098356,1754729433659,-735.04,0.00021917,2]
[378098357,1754729433669,-3822.06,0.00021917,2]
[378098358,1754729433679,-460.39,0.00021917,2]
[378098359,1754729433689,-1940.24,0.00021917,2]
[378098360,1754729433699,-460.0,0.00021917,2]
[378098361,1754729433709,-309.0338596,0.00021917,2]
[378098362,1754729433718,-460.0,0.00021917,2]
[378098363,1754729433728,-460.0,0.00021917,2]
[378098364,1754729433738,-460.0,0.00021917,2]
[378098365,1754729433748,-460.0,0.00021917,2]
[378098366,1754729433759,-1579.26,0.00021917,2]
[378098367,1754729433770,-550.68,0.00021917,2]
[378098368,1754729433779,-1228.06,0.00021917,2]
[378098369,1754729433789,-460.0,0.00021917,2]
[378098370,1754729433799,-460.0,0.00021917,2]
[378098371,1754729433809,-460.0,0.00021917,2]
[378098372,1754729433819,-460.0,0.00021917,2]
[378098373,1754729433829,-460.0,0.00021917,2]
[378098374,1754729433838,-460.0,0.00021917,2]
[378098375,1754729433848,-937.93,0.00021917,2]
[378098376,1754729433858,-604.96,0.00021917,2]
[378098377,1754729433867,-460.0,0.00021917,2]
[378098378,1754729433876,-460.0,0.00021917,2]
[378098379,1754729433886,-460.0,0.00021917,2]
[378098380,1754729433895,-460.0,0.00021917,2]
[378098381,1754729433904,-460.0,0.00021917,2]
[378098382,1754729433914,-1743.73,0.00021917,2]
[378098383,1754729433923,-705.5,0.00021917,2]
[378098384,1754729433932,-608.66,0.00021917,2]
[378098385,1754729433941,-460.0,0.00021917,2]
[378098386,1754729433951,-460.0,0.00021917,2]
[378098387,1754729433960,-460.0,0.00021917,2]
[378098388,1754729433970,-460.0,0.00021917,2]
[378098389,1754729433979,-469.67775498,0.00021917,2]
[378098390,1754729433989,-460.0,0.00021917,2]
[378098391,1754729433999,-460.0,0.00021917,2]
[378098392,1754729434011,-460.0,0.00021917,2]
[378098393,1754729434021,-460.0,0.00021917,2]
[378098394,1754729434031,-460.0,0.00021917,2]
[378098395,1754729434041,-617.74,0.00021917,2]
[378098396,1754729434050,-460.0,0.00021917,2]
[378098397,1754729434060,-460.0,0.00021917,2]
[378098398,1754729434069,-460.0,0.00021917,2]
[378098399,1754729434079,-460.0,0.00021917,2]
[378098400,1754729434088,-524.73,0.00021917,2]
[378098401,1754729434098,-1682.46,0.00021917,2]
[378098402,1754729434107,-677.76,0.00021917,2]
[378098403,1754729434117,-1237.17,0.00021917,2]
[378098404,1754729434128,-460.0,0.00021917,2]
[378098405,1754729434137,-460.0,0.00021917,2]
[378098406,1754729434147,-460.0,0.00021917,2]
[378098407,1754729434156,-460.0,0.00021917,2]
[378098408,1754729434166,-810.16,0.00021917,2]
[378098409,1754729434175,-460.0,0.00021917,2]
[378098410,1754729434184,-1392.72,0.00021917,2]
[378098411,1754729434194,-460.0,0.00021917,2]
[378098412,1754729434204,-488.48,0.00021917,2]
[378098413,1754729434214,-460.0,0.00021917,2]
[378098414,1754729434223,-479.44665692,0.00021917,2]
[378098415,1754729434233,-460.0,0.00021917,2]
[378098416,1754729434242,-460.0,0.00021917,2]
[378098417,1754729434251,-460.0,0.00021917,2]
[378098418,1754729434262,-922.03,0.00021917,2]
[378098419,1754729434271,-1085.52,0.00021917,2]
[378098420,1754729434281,-1024.93,0.00021917,2]
[378098421,1754729434290,-439.88139281,0.00021917,2]
[378098422,1754729434300,-460.0,0.00021917,2]
[378098423,1754729434310,-460.0,0.00021917,2]
[378098424,1754729434319,-996.98,0.00021917,2]
[378098425,1754729434329,-460.0,0.00021917,2]
[378098426,1754729434338,-460.0,0.00021917,2]
[378098427,1754729434347,-460.0,0.00021917,2]
[378098428,1754729434357,-389.00711049,0.00021917,2]
[378098433,1754729437866,-2574.72,0.00021685,10]
[378098434,1754729437876,-500.0,0.00021685,2]
[378098435,1754729437886,-500.0,0.00021685,2]
[378098436,1754729437895,-500.0,0.00021685,2]
[378098437,1754729437905,-500.0,0.00021685,2]
[378098438,1754729437914,-500.0,0.00021685,2]
[378098439,1754729437923,-500.0,0.00021685,2]
[378098440,1754729437933,-398.3977161,0.00021685,2]
[378098441,1754729437942,-500.0,0.00021685,2]
[378098442,1754729437952,-500.0,0.00021685,2]
[378098443,1754729437961,-500.0,0.00021685,2]
[378098444,1754729437971,-547.54901092,0.00021685,2]
[378098445,1754729437980,-500.0,0.00021685,2]
[378098446,1754729437989,-153.46062096,0.00021685,2]
[378098447,1754729437999,-500.0,0.00021685,2]
[378098448,1754729438008,-500.0,0.00021685,2]
[378098449,1754729438021,-500.0,0.00021685,2]
[378098451,1754729438031,-500.0,0.00021685,2]
[378098452,1754729438041,-500.0,0.00021685,2]
[378098453,1754729438050,-500.0,0.00021685,2]
[378098454,1754729438060,-500.0,0.00021685,2]
[378098455,1754729438070,-500.0,0.00021685,2]
[378098456,1754729438079,-500.0,0.00021685,2]
[378098457,1754729438089,-317.49318543,0.00021685,2]
[378098458,1754729438098,-500.0,0.00021685,2]
[378098459,1754729438107,-540.74579873,0.00021685,2]
[378098460,1754729438117,-500.0,0.00021685,2]
[378098461,1754729438127,-500.0,0.00021685,2]
[378098462,1754729438136,-500.0,0.00021685,2]
[378098463,1754729438145,-500.0,0.00021685,2]
[378098464,1754729438156,-500.0,0.00021685,2]
[378098465,1754729438165,-365.88291247,0.00021685,2]
[378098466,1754729438174,-500.0,0.00021685,2]
[378098467,1754729438183,-500.0,0.00021685,2]
[378098468,1754729438193,-500.0,0.00021685,2]
[378098469,1754729438203,-500.0,0.00021685,2]
[378098470,1754729438212,-420.42914126,0.00021685,2]
[378098471,1754729438222,-500.0,0.00021685,2]
[378098472,1754729438232,-500.0,0.00021685,2]
[378098473,1754729438242,-500.0,0.00021685,2]
[378098474,1754729438252,-500.0,0.00021685,2]
[378098475,1754729438263,-500.0,0.00021685,2]
[378098476,1754729438272,-500.0,0.00021685,2]
[378098477,1754729438282,-500.0,0.00021685,2]
[378098478,1754729438292,-500.0,0.00021685,2]
[378098479,1754729438302,-500.0,0.00021685,2]
[378098480,1754729438312,-500.0,0.00021685,2]
[378098481,1754729438322,-500.0,0.00021685,2]
[378098482,1754729438331,-500.0,0.00021685,2]
[378098483,1754729438341,-500.0,0.00021685,2]
[378098484,1754729438352,-70.99288951,0.00021917,2]
[378098485,1754729438363,-460.0,0.00021917,2]
[378098486,1754729438372,-460.0,0.00021917,2]
[378098487,1754729438383,-460.0,0.00021917,2]
[378098488,1754729438393,-460.0,0.00021917,2]
[378098489,1754729438402,-460.0,0.00021917,2]
[378098490,1754729438412,-655.73,0.00021917,2]
[378098491,1754729438421,-460.0,0.00021917,2]
[378098492,1754729438430,-498.34737128,0.00021917,2]
[378098493,1754729438440,-460.0,0.00021917,2]
[378098494,1754729438449,-460.0,0.00021917,2]
[378098495,1754729438458,-460.0,0.00021917,2]
[378098496,1754729438468,-460.0,0.00021917,2]
[378098497,1754729438480,-932.28,0.00021917,2]
[378098498,1754729438489,-460.0,0.00021917,2]
[378098499,1754729438498,-460.0,0.00021917,2]
[378098500,1754729438508,-460.0,0.00021917,2]
[378098501,1754729438519,-960.07,0.00021917,2]
[378098502,1754729438528,-461.97316782,0.00021917,2]
[378098503,1754729438537,-460.0,0.00021917,2]
[378098504,1754729438549,-572.91,0.00021917,2]
[378098505,1754729438560,-500.0,0.00021918,2]
[378098506,1754729438570,-500.0,0.00021918,2]
[378098507,1754729438580,-364.52695261,0.00021918,2]
[378098508,1754729438589,-500.0,0.00021969,2]
[378098509,1754729438599,-500.0,0.00021973,2]
[378098510,1754729438608,-500.0,0.00021973,2]
[378098511,1754729438617,-500.0,0.00021973,2]
[378098512,1754729438627,-500.98423419,0.00021973,2]
[378098513,1754729438636,-603.61760322,0.00021973,2]
[378098514,1754729438646,-500.0,0.00021973,2]
[378098515,1754729438656,-500.0,0.00021973,2]
[378098516,1754729438665,-500.0,0.00021973,2]
[378098517,1754729438675,-500.0,0.00021973,2]
[378098518,1754729438685,-537.2291448,0.00021973,2]
[378098519,1754729438694,-500.0,0.00021973,2]
[378098520,1754729438704,-504.7247005,0.00021973,2]
[378098521,1754729438715,-160.0,0.00021973,2]
[378098522,1754729438724,-500.0,0.00021973,2]
[378098523,1754729438734,-500.0,0.00021973,2]
[378098524,1754729438743,-500.0,0.00021973,2]
[378098525,1754729438752,-509.06019207,0.00021973,2]
[378098526,1754729438764,-513.179356,0.0002199,7]
[378098527,1754729438774,-513.179356,0.0002199,7]
[378098528,1754729438784,-491.402728,0.0002199,7]
[378098529,1754729438794,-491.402728,0.0002199,7]
[378098530,1754729438805,-151.0,0.0002199,7]
[378098531,1754729438823,-151.341652,0.0002199,7]
[378098532,1754729438833,-177.921058,0.0002199,7]
[378098533,1754729438843,-177.921058,0.0002199,7]
[378098534,1754729438852,-151.0,0.0002199,7]
[378098535,1754729438862,-640.100609,0.0002199,7]
[378098536,1754729438871,-640.100609,0.0002199,7]
[378098537,1754729438881,-2057.221825,0.0002199,7]
[378098538,1754729438890,-151.0,0.0002199,7]
[378098539,1754729438899,-2057.221825,0.0002199,7]
[378098540,1754729438909,-100000.0,0.0002199,2]
[378098541,1754729438919,-151.0,0.00022,4]
[378098542,1754729438929,-200.61,0.00022,2]
[378098543,1754729438939,-1157.79,0.00022,2]
[378098544,1754729438948,-220.234414,0.00022027,7]
[378098545,1754729438958,-220.234414,0.00022027,7]
[378098546,1754729438967,-151.0,0.00022027,7]
[378098547,1754729438977,-500.0,0.00022028,2]
[378098548,1754729438987,-500.0,0.00022028,2]
[378098549,1754729438997,-151.0,0.00022028,2]
[378098550,1754729439007,-151.0,0.00022028,2]
[378098551,1754729439018,-151.0,0.00022028,2]
[378098552,1754729439027,-151.0,0.00022028,2]
[378098553,1754729439036,-151.0,0.00022028,2]
[378098554,1754729439045,-151.0,0.00022028,2]
[378098555,1754729439054,-151.0,0.00022028,2]
[378098556,1754729439064,-151.0,0.00022028,2]
[378098557,1754729439074,-500.0,0.00022028,2]
[378098558,1754729439084,-151.0,0.00022028,2]
[378098559,1754729439095,-151.0,0.00022028,2]
[378098560,1754729439105,-151.0,0.00022028,2]
[378098561,1754729439115,-500.0,0.00022028,2]
[378098562,1754729439124,-151.0,0.00022028,2]
[378098563,1754729439133,-255.82720007,0.00022028,2]
[378098564,1754729439142,-500.0,0.00022028,2]
[378098565,1754729439151,-151.0,0.00022028,2]
[378098566,1754729439161,-264.37813709,0.00022028,2]
[378098567,1754729439170,-500.0,0.00022028,2]
[378098568,1754729439180,-2183.31810187,0.00022028,2]
[378098569,1754729439189,-500.0,0.00022028,2]
[378098570,1754729439198,-500.0,0.00022028,2]
[378098571,1754729439207,-500.0,0.00022028,2]
[378098572,1754729439216,-500.0,0.00022028,2]
[378098573,1754729439226,-151.0,0.00022028,2]
[378098574,1754729439235,-300.0,0.00022028,2]
[378098575,1754729439244,-151.0,0.00022028,2]
[378098576,1754729439254,-151.0,0.00022028,2]
[378098577,1754729439265,-15611.85846809,0.00022028,2]
[378098578,1754729439275,-151.0,0.00022028,2]
[378098579,1754729439284,-151.0,0.00022028,2]
[378098580,1754729439293,-151.0,0.00022028,2]
[378098581,1754729439302,-151.0,0.00022028,2]
[378098582,1754729439312,-151.0,0.00022028,2]
[378098583,1754729439321,-151.0,0.00022028,2]
[378098584,1754729439331,-151.0,0.00022028,2]
[378098585,1754729439341,-151.0,0.00022028,2]
[378098586,1754729439351,-151.0,0.00022028,2]
[378098587,1754729439360,-250.0,0.00022028,2]
[378098588,1754729439370,-151.0,0.00022028,2]
[378098589,1754729439379,-250.0,0.00022028,2]
[378098590,1754729439389,-250.0,0.00022028,2]
[378098591,1754729439399,-2374.44319384,0.00022083,2]
[378098592,1754729439408,-151.0,0.000221,9]
[378098593,1754729439418,-151.0,0.000221,10]
[378098594,1754729439427,-200.0,0.00022114,15]
[378098595,1754729439437,-200.0,0.00022114,15]
[378098596,1754729439446,-200.0,0.00022114,15]
[378098597,1754729439455,-200.0,0.00022114,15]
[378098598,1754729439465,-200.0,0.00022114,15]
[378098599,1754729439477,-287.0,0.00022138,2]
[378098600,1754729439487,-1919.59324855,0.00022139,2]
[378098601,1754729439498,-5640.25645022,0.00022172,2]
[378098602,1754729439507,-500.0,0.00022173,2]
[378098603,1754729439518,-500.0,0.00022173,2]
[378098604,1754729439527,-500.0,0.00022173,2]
[378098605,1754729439536,-500.0,0.00022173,2]
[378098606,1754729439546,-500.0,0.00022173,2]
[378098607,1754729439556,-500.0,0.00022173,2]
[378098608,1754729439565,-500.0,0.00022173,2]
[378098609,1754729439575,-622.57566704,0.00022173,2]
[378098610,1754729439584,-500.0,0.00022173,2]
[378098611,1754729439593,-237.05517698,0.00022173,2]
[378098612,1754729439603,-500.0,0.00022173,2]
[378098613,1754729439611,-500.0,0.00022173,2]
[378098614,1754729439621,-158.0,0.00022173,2]
[378098615,1754729439630,-500.0,0.00022173,2]
[378098616,1754729439639,-158.41797497,0.00022173,2]
[378098617,1754729439649,-161.61667776,0.00022173,2]
[378098618,1754729439659,-379.80132043,0.00022173,2]
[378098619,1754729439668,-500.0,0.00022173,2]
[378098620,1754729439678,-500.36776074,0.00022173,2]
[378098622,1754729439686,-635.36961691,0.00022173,2]
[378098623,1754729439696,-500.0,0.00022173,2]
[378098624,1754729439705,-500.0,0.00022173,2]
[378098625,1754729439714,-500.0,0.00022173,2]
[378098626,1754729439724,-442.50132313,0.00022173,2]
[378098627,1754729439733,-500.0,0.00022173,2]
[378098628,1754729439742,-500.0,0.00022173,2]
[378098629,1754729439751,-500.0,0.00022173,2]
[378098630,1754729439760,-500.0,0.00022173,2]
[378098631,1754729439772,-500.0,0.00022173,2]
[378098632,1754729439782,-500.0,0.00022173,2]
[378098633,1754729439792,-500.0,0.00022173,2]
[378098634,1754729439801,-474.07423188,0.00022173,2]
[378098635,1754729439811,-503.88876366,0.00022173,2]
[378098636,1754729439820,-500.0,0.00022173,2]
[378098637,1754729439829,-500.0,0.00022173,2]
[378098638,1754729439839,-200.0,0.00022173,2]
[378098639,1754729439848,-501.74647239,0.00022173,2]
[378098640,1754729439857,-461.15849543,0.00022173,2]
[378098641,1754729439867,-513.179356,0.00022191,7]
[378098642,1754729439876,-513.179356,0.00022191,7]
[378098643,1754729439885,-151.0,0.00022191,7]
[378098644,1754729439895,-220.234414,0.00022191,7]
[378098645,1754729439904,-220.234414,0.00022191,7]
[378098646,1754729439913,-151.0,0.00022191,7]
[378098648,1754729439923,-461.21,0.00022191,2]
[378098649,1754729439932,-511.94073108,0.00022191,2]
[378098650,1754729439941,-460.0,0.00022191,2]
[378098652,1754729439950,-460.0,0.00022191,2]
[378098654,1754729439959,-460.0,0.00022191,2]
[378098655,1754729439969,-460.0,0.00022191,2]
[378098656,1754729439978,-491.402728,0.00022191,7]
[378098657,1754729440002,-460.0,0.00022191,2]
[378098658,1754729440012,-491.402728,0.00022191,7]
[378098659,1754729440022,-460.0,0.00022191,2]
[378098660,1754729440032,-460.0,0.00022191,2]
[378098661,1754729440041,-460.0,0.00022191,2]
[378098662,1754729440051,-460.0,0.00022191,2]
[378098663,1754729440060,-460.0,0.00022191,2]
[378098664,1754729440070,-460.0,0.00022191,2]
[378098665,1754729440079,-460.0,0.00022191,2]
[378098666,1754729440089,-460.0,0.00022191,2]
[378098668,1754729440099,-460.0,0.00022191,2]
[378098670,1754729440108,-460.0,0.00022191,2]
[378098671,1754729440118,-460.0,0.00022191,2]
[378098673,1754729440128,-567.91,0.00022191,2]
[378098674,1754729440137,-460.0,0.00022191,2]
[378098675,1754729440147,-460.0,0.00022191,2]
[378098676,1754729440157,-460.0,0.00022191,2]
[378098677,1754729440167,-460.0,0.00022191,2]
[378098678,1754729440177,-460.0,0.00022191,2]
[378098679,1754729440186,-460.0,0.00022191,2]
[378098681,1754729440195,-151.0,0.00022191,7]
[378098682,1754729440205,-460.0,0.00022191,2]
[378098683,1754729440215,-460.0,0.00022191,2]
[378098684,1754729440224,-460.0,0.00022191,2]
[378098685,1754729440234,-460.0,0.00022191,2]
[378098686,1754729440243,-460.0,0.00022191,2]
[378098687,1754729440253,-742.185379,0.00022191,7]
[378098688,1754729440267,-460.0,0.00022191,2]
[378098689,1754729440276,-460.0,0.00022191,2]
[378098690,1754729440285,-460.0,0.00022191,2]
[378098691,1754729440295,-460.0,0.00022191,2]
[378098692,1754729440304,-742.185379,0.00022191,7]
[378098693,1754729440314,-460.0,0.00022191,2]
[378098694,1754729440323,-460.0,0.00022191,2]
[378098695,1754729440332,-460.0,0.00022191,2]
[378098696,1754729440342,-460.0,0.00022191,2]
[378098697,1754729440352,-460.0,0.00022191,2]
[378098698,1754729440361,-151.0,0.00022191,2]
[378098699,1754729440371,-152.63238369,0.00022191,2]
[378098700,1754729440380,-153.0496871,0.00022191,2]
[378098701,1754729440389,-151.0,0.00022191,2]
[378098702,1754729440399,-460.0,0.00022191,2]
[378098703,1754729440408,-151.0,0.00022191,2]
[378098704,1754729440417,-151.0,0.00022191,2]
[378098705,1754729440427,-275.32081735,0.00022191,2]
[378098706,1754729440436,-151.0,0.00022191,2]
[378098707,1754729440445,-460.0,0.00022191,2]
[378098708,1754729440454,-460.0,0.00022191,2]
[378098709,1754729440464,-460.0,0.00022191,2]
[378098710,1754729440475,-460.0,0.00022191,2]
[378098711,1754729440485,-460.0,0.00022191,2]
[378098712,1754729440494,-460.0,0.00022191,2]
[378098713,1754729440505,-460.0,0.00022191,2]
[378098714,1754729440517,-460.0,0.00022191,2]
[378098715,1754729440528,-460.0,0.00022191,2]
[378098716,1754729440537,-460.0,0.00022191,2]
[378098717,1754729440547,-460.0,0.00022191,2]
[378098718,1754729440557,-460.0,0.00022191,2]
[378098719,1754729440567,-177.921058,0.00022191,7]
[378098720,1754729440576,-177.921058,0.00022191,7]
[378098721,1754729440585,-562.17,0.00022191,2]
[378098722,1754729440596,-460.0,0.00022191,2]
[378098723,1754729440605,-2408.59,0.00022191,2]
[378098724,1754729440621,-630.81,0.00022191,2]
[378098725,1754729440632,-460.0,0.00022191,2]
[378098726,1754729440642,-460.0,0.00022191,2]
[378098727,1754729440651,-460.0,0.00022191,2]
[378098728,1754729440661,-460.0,0.00022191,2]
[378098729,1754729440671,-460.0,0.00022191,2]
[378098730,1754729440681,-460.0,0.00022191,2]
[378098731,1754729440690,-666.55,0.00022191,2]
[378098732,1754729440700,-460.0,0.00022191,2]
[378098733,1754729440710,-460.0,0.00022191,2]
[378098734,1754729440719,-460.0,0.00022191,2]
[378098735,1754729440729,-460.0,0.00022191,2]
[378098736,1754729440739,-151.0,0.00022191,7]
[378098737,1754729440749,-460.0,0.00022191,2]
[378098738,1754729440759,-466.84,0.00022191,2]
[378098739,1754729440771,-460.0,0.00022191,2]
[378098740,1754729440781,-460.0,0.00022191,2]
[378098741,1754729440791,-460.0,0.00022191,2]
[378098742,1754729440800,-460.0,0.00022191,2]
[378098743,1754729440810,-460.0,0.00022191,2]
[378098744,1754729440820,-735.04,0.00022191,2]
[378098745,1754729441017,-3822.06,0.00022191,2]
[378098746,1754729441027,-460.39,0.00022191,2]
[378098747,1754729441037,-1940.24,0.00022191,2]
[378098748,1754729441047,-460.0,0.00022191,2]
[378098749,1754729441057,-460.0,0.00022191,2]
[378098750,1754729441066,-460.0,0.00022191,2]
[378098751,1754729441076,-1579.26,0.00022191,2]
[378098752,1754729441086,-550.68,0.00022191,2]
[378098753,1754729441095,-1228.06,0.00022191,2]
[378098754,1754729441105,-460.0,0.00022191,2]
[378098755,1754729441114,-460.0,0.00022191,2]
[378098756,1754729441123,-366.22171395,0.00022191,2]
[378098757,1754729441132,-460.0,0.00022191,2]
[378098758,1754729441142,-460.0,0.00022191,2]
[378098759,1754729441151,-460.0,0.00022191,2]
[378098760,1754729441161,-937.93,0.00022191,2]
[378098761,1754729441172,-604.96,0.00022191,2]
[378098762,1754729441184,-460.0,0.00022191,2]
[378098763,1754729441193,-460.0,0.00022191,2]
[378098764,1754729441204,-460.0,0.00022191,2]
[378098765,1754729441213,-1743.73,0.00022191,2]
[378098766,1754729441224,-151.0,0.00022191,7]
[378098767,1754729441233,-705.5,0.00022191,2]
[378098768,1754729441244,-151.0,0.00022191,7]
[378098769,1754729441254,-608.66,0.00022191,2]
[378098770,1754729441266,-460.0,0.00022191,2]
[378098771,1754729441275,-460.0,0.00022191,2]
[378098772,1754729441284,-460.0,0.00022191,2]
[378098773,1754729441294,-460.0,0.00022191,2]
[378098774,1754729441304,-460.0,0.00022191,2]
[378098775,1754729441313,-460.0,0.00022191,2]
[378098776,1754729441323,-460.0,0.00022191,2]
[378098777,1754729441332,-617.74,0.00022191,2]
[378098778,1754729441342,-460.0,0.00022191,2]
[378098779,1754729441352,-460.0,0.00022191,2]
[378098780,1754729441361,-460.0,0.00022191,2]
[378098781,1754729441371,-524.73,0.00022191,2]
[378098782,1754729441381,-1682.46,0.00022191,2]
[378098783,1754729441390,-677.76,0.00022191,2]
[378098784,1754729441400,-1237.17,0.00022191,2]
[378098785,1754729441410,-460.0,0.00022191,2]
[378098786,1754729441419,-460.0,0.00022191,2]
[378098787,1754729441429,-810.16,0.00022191,2]
[378098788,1754729441439,-151.0,0.00022191,7]
[378098789,1754729441448,-460.0,0.00022191,2]
[378098790,1754729441457,-1392.72,0.00022191,2]
[378098791,1754729441468,-488.48,0.00022191,2]
[378098792,1754729441481,-460.0,0.00022191,2]
[378098793,1754729441491,-460.0,0.00022191,2]
[378098794,1754729441500,-640.100609,0.00022191,7]
[378098795,1754729441510,-460.0,0.00022191,2]
[378098796,1754729441522,-922.03,0.00022191,2]
[378098797,1754729441532,-640.100609,0.00022191,7]
[378098798,1754729441541,-151.64454431,0.00022191,2]
[378098799,1754729441552,-1085.52,0.00022191,2]
[378098800,1754729441561,-151.0,0.00022191,2]
[378098801,1754729441571,-500.0,0.00022191,2]
[378098802,1754729441580,-1024.93,0.00022191,2]
[378098803,1754729441591,-151.0,0.00022191,2]
[378098804,1754729441602,-460.0,0.00022191,2]
[378098805,1754729441611,-2057.221825,0.00022191,7]
[378098806,1754729441621,-151.0,0.00022191,7]
[378098807,1754729441630,-460.0,0.00022191,2]
[378098808,1754729441640,-996.98,0.00022191,2]
[378098809,1754729441650,-460.0,0.00022191,2]
[378098810,1754729441659,-460.0,0.00022191,2]
[378098811,1754729441669,-460.0,0.00022191,2]
[378098812,1754729441679,-460.0,0.00022191,2]
[378098813,1754729441689,-460.0,0.00022191,2]
[378098814,1754729441698,-460.0,0.00022191,2]
[378098815,1754729441708,-655.73,0.00022191,2]
[378098816,1754729441718,-197.80892963,0.00022191,2]
[378098817,1754729441727,-460.0,0.00022191,2]
[378098818,1754729441736,-151.0,0.00022191,2]
[378098819,1754729441746,-500.0,0.00022191,2]
[378098820,1754729441756,-460.0,0.00022191,2]
[378098821,1754729441766,-460.0,0.00022191,2]
[378098822,1754729441776,-151.0,0.00022191,2]
[378098823,1754729441786,-932.28,0.00022191,2]
[378098824,1754729441795,-460.0,0.00022191,2]
[378098825,1754729441805,-151.0,0.00022191,2]
[378098826,1754729441815,-500.0,0.00022191,2]
[378098827,1754729441824,-507.13849697,0.00022191,2]
[378098828,1754729441834,-460.0,0.00022191,2]
[378098829,1754729441845,-960.07,0.00022191,2]
[378098830,1754729441856,-151.0,0.000222,7]
[378098831,1754729441866,-151.0,0.000222,10]
[378098832,1754729441876,-151.0,0.000222,9]
[378098833,1754729441886,-500.0,0.00022243,2]
[378098834,1754729441895,-220.234414,0.00022247,7]
[378098835,1754729441905,-220.234414,0.00022247,7]
[378098836,1754729441915,-151.575442,0.00022247,7]
[378098837,1754729441924,-151.0,0.000223,5]
[378098838,1754729441934,-151.0,0.000224,8]
[378098839,1754729441943,-151.0,0.000224,10]
[378098840,1754729441954,-151.0,0.00022465,2]
[378098841,1754729441965,-151.0,0.00022465,2]
[378098842,1754729441975,-500.0,0.00022465,2]
[378098843,1754729441984,-281.35352861,0.00022465,2]
[378098844,1754729441995,-151.0,0.00022465,2]
[378098845,1754729442006,-151.0,0.00022465,2]
[378098846,1754729442016,-500.0,0.00022465,2]
[378098847,1754729442025,-513.179356,0.00022465,7]
[378098848,1754729442034,-513.179356,0.00022465,7]
[378098849,1754729442044,-151.0,0.00022465,7]